[Event "Live Chess"]
[Site "Chess.com"]
[Date "2024.06.02"]
[Round "-"]
[White "wadsy27"]
[Black "mychess51"]
[Result "1-0"]
[WhiteElo "2582"]
[BlackElo "1762"]
[TimeControl "300"]
[EndTime "17:18:00 PDT"]
[Termination "wadsy27 won by resignation"]

1. d4 {[%clk 0:04:58.2]} 1... e6 {[%clk 0:04:59]} 2. Bf4 {[%clk 0:04:57.1]} 2...
d5 {[%clk 0:04:57.1]} 3. e3 {[%clk 0:04:56.5]} 3... c5 {[%clk 0:04:56.3]} 4. c3
{[%clk 0:04:54.2]} 4... Nc6 {[%clk 0:04:50.9]} 5. Nf3 {[%clk 0:04:52.8]} 5...
Qb6 {[%clk 0:04:49.7]} 6. Qb3 {[%clk 0:04:49.6]} 6... c4 {[%clk 0:04:46]} 7. Qc2
{[%clk 0:04:48.6]} 7... Nf6 {[%clk 0:04:44]} 8. Nbd2 {[%clk 0:04:47.6]} 8... Be7
{[%clk 0:04:41.6]} 9. b3 {[%clk 0:04:46.9]} 9... cxb3 {[%clk 0:04:37.6]} 10.
axb3 {[%clk 0:04:46.8]} 10... Bd7 {[%clk 0:04:35.6]} 11. Bd3 {[%clk 0:04:46.2]}
11... h6 {[%clk 0:04:33.6]} 12. h3 {[%clk 0:04:44.5]} 12... Rc8 {[%clk
0:04:29.8]} 13. Qb1 {[%clk 0:04:36.4]} 13... a6 {[%clk 0:04:28]} 14. O-O {[%clk
0:04:34.9]} 14... Qd8 {[%clk 0:04:07.8]} 15. Rc1 {[%clk 0:04:26.8]} 15... Nh5
{[%clk 0:04:06.1]} 16. Bh2 {[%clk 0:04:25]} 16... g5 {[%clk 0:03:54.7]} 17. c4
{[%clk 0:04:22.5]} 17... Nb4 {[%clk 0:03:37.4]} 18. cxd5 {[%clk 0:04:16.5]}
18... Nxd3 {[%clk 0:03:35.5]} 19. Qxd3 {[%clk 0:04:15.1]} 19... exd5 {[%clk
0:03:26.3]} 20. Ne5 {[%clk 0:04:11.6]} 20... Be6 {[%clk 0:03:18.8]} 21. Nf1
{[%clk 0:03:54.2]} 21... O-O {[%clk 0:03:15.8]} 22. g4 {[%clk 0:03:50.8]} 22...
Nf6 {[%clk 0:03:06.5]} 23. Ng3 {[%clk 0:03:49.7]} 23... Qb6 {[%clk 0:02:16.4]}
24. Nf5 {[%clk 0:03:43.4]} 24... Bxf5 {[%clk 0:02:11.4]} 25. Qxf5 {[%clk
0:03:43.3]} 25... Rxc1+ {[%clk 0:02:01.5]} 26. Rxc1 {[%clk 0:03:43.2]} 26...
Qxb3 {[%clk 0:01:59.3]} 27. Rc7 {[%clk 0:03:35.9]} 27... Bd8 {[%clk 0:01:54.4]}
28. Rc8 {[%clk 0:03:34.3]} 28... Qb6 {[%clk 0:01:30.1]} 29. h4 {[%clk
0:03:28.6]} 29... Qe6 {[%clk 0:01:17.9]} 30. hxg5 {[%clk 0:03:13.1]} 30... Qxf5
{[%clk 0:01:15.7]} 31. gxf5 {[%clk 0:03:12.4]} 31... hxg5 {[%clk 0:01:11.7]} 32.
Rb8 {[%clk 0:03:11.6]} 32... b6 {[%clk 0:00:50.5]} 33. Nc6 {[%clk 0:03:09.9]}
33... Bc7 {[%clk 0:00:35.4]} 34. Bxc7 {[%clk 0:03:03.6]} 34... Rxb8 {[%clk
0:00:33.8]} 35. Bxb8 {[%clk 0:03:03.2]} 35... a5 {[%clk 0:00:29.4]} 36. Be5
{[%clk 0:02:55.6]} 36... Nd7 {[%clk 0:00:28]} 37. Ne7+ {[%clk 0:02:54.5]} 37...
Kh7 {[%clk 0:00:25]} 38. Nxd5 {[%clk 0:02:53.9]} 38... b5 {[%clk 0:00:21.5]} 39.
Nf6+ {[%clk 0:02:50.6]} 39... Nxf6 {[%clk 0:00:19.2]} 40. Bxf6 {[%clk
0:02:49.8]} 40... a4 {[%clk 0:00:17.9]} 41. Be7 {[%clk 0:02:49]} 41... f6 {[%clk
0:00:14.1]} 42. Kg2 {[%clk 0:02:46.5]} 42... Kg8 {[%clk 0:00:13.3]} 43. d5
{[%clk 0:02:44.5]} 43... Kf7 {[%clk 0:00:13.2]} 44. Bb4 {[%clk 0:02:43.6]} 44...
Ke8 {[%clk 0:00:13.1]} 45. e4 {[%clk 0:02:42.5]} 45... Kd7 {[%clk 0:00:13]} 46.
f4 {[%clk 0:02:40.9]} 46... gxf4 {[%clk 0:00:11.7]} 47. Kf3 {[%clk 0:02:40.3]}
47... a3 {[%clk 0:00:10.1]} 48. Bxa3 {[%clk 0:02:38.8]} 48... Kc7 {[%clk
0:00:10]} 49. Kxf4 {[%clk 0:02:37.6]} 49... Kb6 {[%clk 0:00:09.9]} 50. e5 {[%clk
0:02:37.1]} 50... b4 {[%clk 0:00:09.7]} 51. Bxb4 {[%clk 0:02:36.1]} 51... Kb5
{[%clk 0:00:09.2]} 52. exf6 {[%clk 0:02:35.6]} 52... Kxb4 {[%clk 0:00:08.3]} 53.
f7 {[%clk 0:02:35.3]} 53... Kc5 {[%clk 0:00:08.2]} 54. f8=Q+ {[%clk 0:02:34.8]}
54... Kxd5 {[%clk 0:00:08.1]} 55. Qd8+ {[%clk 0:02:34.1]} 1-0

[Event "Live Chess"]
[Site "Chess.com"]
[Date "2024.06.02"]
[Round "-"]
[White "ACM42"]
[Black "Tushinskiy"]
[Result "1-0"]
[WhiteElo "2158"]
[BlackElo "2232"]
[TimeControl "300"]
[EndTime "17:18:39 PDT"]
[Termination "ACM42 won by resignation"]

1. e4 {[%clk 0:04:51.5]} 1... e5 {[%clk 0:04:58.7]} 2. Nf3 {[%clk 0:04:45.4]}
2... d6 {[%clk 0:04:58.6]} 3. d4 {[%clk 0:04:40.2]} 3... Bg4 {[%clk 0:04:56.1]}
4. dxe5 {[%clk 0:04:36.7]} 4... Nd7 {[%clk 0:04:54.1]} 5. exd6 {[%clk
0:04:34.1]} 5... Bxd6 {[%clk 0:04:54]} 6. h3 {[%clk 0:04:33.3]} 6... Bh5 {[%clk
0:04:52.1]} 7. Be2 {[%clk 0:04:30.4]} 7... Qe7 {[%clk 0:04:44.6]} 8. Nc3 {[%clk
0:04:28.6]} 8... Ngf6 {[%clk 0:04:32.5]} 9. Bd3 {[%clk 0:04:23.2]} 9... O-O-O
{[%clk 0:04:30.6]} 10. Bg5 {[%clk 0:04:21.1]} 10... Ne5 {[%clk 0:04:22.7]} 11.
Qe2 {[%clk 0:04:12.1]} 11... Bb4 {[%clk 0:04:19.9]} 12. g4 {[%clk 0:04:06.3]}
12... Bg6 {[%clk 0:04:15.9]} 13. a3 {[%clk 0:03:31.3]} 13... Bxc3+ {[%clk
0:04:02.2]} 14. bxc3 {[%clk 0:03:29.6]} 14... Qc5 {[%clk 0:04:01.8]} 15. c4
{[%clk 0:03:22.1]} 15... Nxf3+ {[%clk 0:03:59.3]} 16. Qxf3 {[%clk 0:03:19.9]}
16... Qxg5 {[%clk 0:03:59.2]} 17. Rb1 {[%clk 0:03:08]} 17... c6 {[%clk
0:03:47.4]} 18. Qg3 {[%clk 0:02:51.4]} 18... Nxe4 {[%clk 0:03:42.6]} 19. Qf3
{[%clk 0:02:44.4]} 19... Qd2+ {[%clk 0:03:35.8]} 20. Kf1 {[%clk 0:02:41.9]}
20... Ng5 {[%clk 0:03:34]} 21. Bf5+ {[%clk 0:02:34.5]} 21... Kc7 {[%clk
0:03:14.7]} 22. Qg3+ {[%clk 0:02:32.2]} 22... Qd6 {[%clk 0:03:13]} 23. Qb3
{[%clk 0:02:18.3]} 23... b6 {[%clk 0:03:05.3]} 24. h4 {[%clk 0:02:13.8]} 24...
Bxf5 {[%clk 0:03:03.4]} 25. hxg5 {[%clk 0:02:12.8]} 25... Be4 {[%clk 0:02:57]}
26. c5 {[%clk 0:02:10.4]} 26... Qxc5 {[%clk 0:02:53.1]} 27. Qxf7+ {[%clk
0:02:09.5]} 27... Rd7 {[%clk 0:02:51.7]} 28. Qf4+ {[%clk 0:02:08.5]} 28... Kb7
{[%clk 0:02:49.8]} 29. Qxe4 {[%clk 0:02:07.4]} 29... Rf8 {[%clk 0:02:48]} 30.
Rh2 {[%clk 0:02:00.6]} 30... Rdf7 {[%clk 0:02:37.7]} 31. Qe2 {[%clk 0:01:45.6]}
31... Rxf2+ {[%clk 0:02:31.4]} 32. Rxf2 {[%clk 0:01:41.7]} 32... Rxf2+ {[%clk
0:02:28.7]} 33. Qxf2 {[%clk 0:01:41]} 1-0

[Event "Live Chess"]
[Site "Chess.com"]
[Date "2024.06.02"]
[Round "-"]
[White "Crowded_House"]
[Black "educatedlad"]
[Result "1/2-1/2"]
[WhiteElo "1727"]
[BlackElo "1747"]
[TimeControl "300"]
[EndTime "17:18:58 PDT"]
[Termination "Game drawn by repetition"]

1. d4 {[%clk 0:04:56.4]} 1... Nf6 {[%clk 0:04:58.4]} 2. Bg5 {[%clk 0:04:55.4]}
2... Ne4 {[%clk 0:04:55.3]} 3. Bh4 {[%clk 0:04:53]} 3... g5 {[%clk 0:04:52.1]}
4. Nd2 {[%clk 0:04:49.4]} 4... Nxd2 {[%clk 0:04:48.5]} 5. Qxd2 {[%clk
0:04:48.2]} 5... gxh4 {[%clk 0:04:46.7]} 6. Nf3 {[%clk 0:04:45.5]} 6... Nc6
{[%clk 0:04:41.4]} 7. Nxh4 {[%clk 0:04:38]} 7... e6 {[%clk 0:04:38.5]} 8. Nf3
{[%clk 0:04:35.8]} 8... Bb4 {[%clk 0:04:35.1]} 9. c3 {[%clk 0:04:34]} 9... Be7
{[%clk 0:04:23.6]} 10. e3 {[%clk 0:04:31.3]} 10... d5 {[%clk 0:04:21.4]} 11. Bd3
{[%clk 0:04:28.8]} 11... h5 {[%clk 0:04:19]} 12. O-O-O {[%clk 0:04:20.1]} 12...
Qd6 {[%clk 0:04:12.8]} 13. Bb5 {[%clk 0:04:07]} 13... a6 {[%clk 0:04:10.3]} 14.
Ba4 {[%clk 0:03:59.1]} 14... b5 {[%clk 0:04:06.5]} 15. Bb3 {[%clk 0:03:57.2]}
15... Na5 {[%clk 0:04:06]} 16. Ne5 {[%clk 0:03:50.3]} 16... Nxb3+ {[%clk
0:04:02.1]} 17. axb3 {[%clk 0:03:48.8]} 17... Bf6 {[%clk 0:03:53.4]} 18. f4
{[%clk 0:03:43.5]} 18... Bxe5 {[%clk 0:03:50.7]} 19. fxe5 {[%clk 0:03:40.9]}
19... Qe7 {[%clk 0:03:43.1]} 20. Rdf1 {[%clk 0:03:33.9]} 20... c5 {[%clk
0:03:38.4]} 21. Rf6 {[%clk 0:03:24.7]} 21... cxd4 {[%clk 0:03:34.6]} 22. exd4
{[%clk 0:03:23.5]} 22... Bd7 {[%clk 0:03:29.6]} 23. Rhf1 {[%clk 0:03:20.3]}
23... O-O-O {[%clk 0:03:24.6]} 24. Rxf7 {[%clk 0:03:18.2]} 24... Qh4 {[%clk
0:03:15.1]} 25. g3 {[%clk 0:03:09.5]} 25... Qg4 {[%clk 0:03:01.8]} 26. R1f4
{[%clk 0:02:58.5]} 26... Qg5 {[%clk 0:02:55.7]} 27. Qf2 {[%clk 0:02:51.3]} 27...
Rhf8 {[%clk 0:02:51.2]} 28. Rxf8 {[%clk 0:02:49.7]} 28... Rxf8 {[%clk
0:02:49.8]} 29. Kb1 {[%clk 0:02:44.4]} 29... Rxf4 {[%clk 0:02:48.4]} 30. gxf4
{[%clk 0:02:36.6]} 30... Qf5+ {[%clk 0:02:45.9]} 31. Kc1 {[%clk 0:02:32.6]}
31... Be8 {[%clk 0:02:44.3]} 32. Qg3 {[%clk 0:02:29.1]} 32... Bg6 {[%clk
0:02:42.9]} 33. Kd2 {[%clk 0:02:18.3]} 33... Qc2+ {[%clk 0:02:40]} 34. Ke3
{[%clk 0:02:17]} 34... Qd3+ {[%clk 0:02:38.9]} 35. Kf2 {[%clk 0:02:15.4]} 35...
Qxg3+ {[%clk 0:02:37.1]} 36. Kxg3 {[%clk 0:02:13.4]} 36... a5 {[%clk 0:02:35.1]}
37. Kh4 {[%clk 0:02:08.8]} 37... Bc2 {[%clk 0:02:33.5]} 38. b4 {[%clk 0:02:06]}
38... axb4 {[%clk 0:02:26]} 39. cxb4 {[%clk 0:02:02.6]} 39... Bd1 {[%clk
0:02:25]} 40. Kg5 {[%clk 0:02:00.3]} 40... Kd8 {[%clk 0:02:22.1]} 41. Kf6 {[%clk
0:01:59.2]} 41... Kd7 {[%clk 0:02:21]} 42. f5 {[%clk 0:01:54.7]} 42... exf5
{[%clk 0:02:18.3]} 43. Kxf5 {[%clk 0:01:53.8]} 43... Bg4+ {[%clk 0:02:17.7]} 44.
Kg5 {[%clk 0:01:43.2]} 44... Ke6 {[%clk 0:02:16.7]} 45. Kf4 {[%clk 0:01:37.5]}
45... Be2 {[%clk 0:02:11.6]} 46. h4 {[%clk 0:01:30.3]} 46... Bg4 {[%clk
0:02:10]} 47. Kg5 {[%clk 0:01:28]} 47... Bf3 {[%clk 0:02:05.1]} 48. Kg6 {[%clk
0:01:23]} 48... Ke7 {[%clk 0:01:59.2]} 49. Kf5 {[%clk 0:01:19.6]} 49... Bg4+
{[%clk 0:01:46.9]} 50. Kg6 {[%clk 0:01:18.3]} 50... Kd7 {[%clk 0:01:39.6]} 51.
Kf6 {[%clk 0:01:17]} 51... Ke8 {[%clk 0:01:28.6]} 52. Kg7 {[%clk 0:01:13.6]}
52... Ke7 {[%clk 0:01:27.2]} 53. Kg6 {[%clk 0:01:11.9]} 53... Bf3 {[%clk
0:01:24.8]} 54. Kg7 {[%clk 0:01:10.2]} 54... Ke6 {[%clk 0:01:22.2]} 55. Kg6
{[%clk 0:01:08.8]} 55... Be4+ {[%clk 0:01:17.5]} 56. Kg5 {[%clk 0:01:07.4]}
56... Bf3 {[%clk 0:01:16]} 57. Kg6 {[%clk 0:01:06.7]} 1/2-1/2

[Event "Live Chess"]
[Site "Chess.com"]
[Date "2024.06.02"]
[Round "-"]
[White "Plato_77"]
[Black "StoreySniper"]
[Result "0-1"]
[WhiteElo "1297"]
[BlackElo "2530"]
[TimeControl "300"]
[EndTime "17:19:17 PDT"]
[Termination "StoreySniper won by checkmate"]

1. e4 {[%clk 0:04:58.3]} 1... g6 {[%clk 0:04:56.6]} 2. d4 {[%clk 0:04:56.8]}
2... Bg7 {[%clk 0:04:56.3]} 3. Nc3 {[%clk 0:04:55.1]} 3... c5 {[%clk 0:04:55.9]}
4. d5 {[%clk 0:04:42.9]} 4... d6 {[%clk 0:04:54.5]} 5. Nf3 {[%clk 0:04:38.6]}
5... Bxc3+ {[%clk 0:04:53]} 6. bxc3 {[%clk 0:04:35.7]} 6... Nf6 {[%clk
0:04:52.7]} 7. Nd2 {[%clk 0:04:19.5]} 7... Qa5 {[%clk 0:04:35.5]} 8. Qf3 {[%clk
0:04:12.1]} 8... Nbd7 {[%clk 0:04:31.3]} 9. Nc4 {[%clk 0:04:01.2]} 9... Qc7
{[%clk 0:04:24.5]} 10. Bh6 {[%clk 0:03:50]} 10... b5 {[%clk 0:04:20.5]} 11. Ne3
{[%clk 0:03:42]} 11... Qa5 {[%clk 0:04:14.2]} 12. Nd1 {[%clk 0:03:21.1]} 12...
Ne5 {[%clk 0:04:10.3]} 13. Qe2 {[%clk 0:02:59.8]} 13... Ba6 {[%clk 0:03:54.3]}
14. f4 {[%clk 0:02:31.9]} 14... Nc4 {[%clk 0:03:52.4]} 15. e5 {[%clk 0:02:21.1]}
15... Nxd5 {[%clk 0:03:48.4]} 16. exd6 {[%clk 0:02:12]} 16... Nxd6 {[%clk
0:03:47.2]} 17. Qe5 {[%clk 0:02:07.2]} 17... Nf6 {[%clk 0:03:35.7]} 18. Bg7
{[%clk 0:02:05.6]} 18... O-O-O {[%clk 0:03:34.7]} 19. Bxh8 {[%clk 0:01:56.2]}
19... Rxh8 {[%clk 0:03:33.7]} 20. Be2 {[%clk 0:01:42]} 20... Re8 {[%clk
0:03:24.6]} 21. O-O {[%clk 0:01:18.8]} 21... Nd7 {[%clk 0:03:19.8]} 22. Qe3
{[%clk 0:01:10.7]} 22... Nf5 {[%clk 0:03:14.6]} 23. Qd3 {[%clk 0:01:05.6]} 23...
Qb6 {[%clk 0:03:08]} 24. Kh1 {[%clk 0:01:01.2]} 24... c4 {[%clk 0:03:06.9]} 25.
Qf3 {[%clk 0:00:54.2]} 25... Bb7 {[%clk 0:03:02.9]} 26. Qf2 {[%clk 0:00:52.7]}
26... Nc5 {[%clk 0:02:52.4]} 27. a4 {[%clk 0:00:44]} 27... Nxa4 {[%clk
0:02:43.8]} 28. Bxc4 {[%clk 0:00:42.6]} 28... Qc6 {[%clk 0:02:22.2]} 29. Bxf7
{[%clk 0:00:35.1]} 29... Rf8 {[%clk 0:02:16.4]} 30. Bb3 {[%clk 0:00:33.1]} 30...
Nc5 {[%clk 0:02:13.1]} 31. Be6+ {[%clk 0:00:26]} 31... Nxe6 {[%clk 0:02:09.3]}
32. Rxa7 {[%clk 0:00:21]} 32... Nd6 {[%clk 0:01:58.9]} 33. Qe3 {[%clk 0:00:14]}
33... Nxf4 {[%clk 0:01:41.6]} 34. Qf3 {[%clk 0:00:06.2]} 34... Qxf3 {[%clk
0:01:37.4]} 35. gxf3 {[%clk 0:00:05]} 35... Ne4 {[%clk 0:01:32.7]} 36. fxe4
{[%clk 0:00:03.6]} 36... Bxe4+ {[%clk 0:01:31.6]} 37. Kg1 {[%clk 0:00:03.5]}
37... Nh3# {[%clk 0:01:30.7]} 0-1

[Event "Live Chess"]
[Site "Chess.com"]
[Date "2024.06.02"]
[Round "-"]
[White "Dhaydon19"]
[Black "Frankie_Badacsonyi"]
[Result "1-0"]
[WhiteElo "2683"]
[BlackElo "2405"]
[TimeControl "300"]
[EndTime "17:19:55 PDT"]
[Termination "Dhaydon19 won by resignation"]

1. Nf3 {[%clk 0:04:57.8]} 1... Nf6 {[%clk 0:04:59.3]} 2. e3 {[%clk 0:04:57.2]}
2... b6 {[%clk 0:04:58.8]} 3. b3 {[%clk 0:04:56.9]} 3... Bb7 {[%clk 0:04:58.4]}
4. Bb2 {[%clk 0:04:56.6]} 4... e6 {[%clk 0:04:57.9]} 5. Be2 {[%clk 0:04:56.3]}
5... d5 {[%clk 0:04:56.7]} 6. O-O {[%clk 0:04:56]} 6... Be7 {[%clk 0:04:55.5]}
7. c4 {[%clk 0:04:55.7]} 7... O-O {[%clk 0:04:54.8]} 8. cxd5 {[%clk 0:04:55.2]}
8... exd5 {[%clk 0:04:54.7]} 9. Nc3 {[%clk 0:04:53.6]} 9... a6 {[%clk 0:04:54]}
10. d4 {[%clk 0:04:52.8]} 10... Bd6 {[%clk 0:04:53.4]} 11. Qc2 {[%clk
0:04:52.5]} 11... Nbd7 {[%clk 0:04:52.4]} 12. Rad1 {[%clk 0:04:50]} 12... Re8
{[%clk 0:04:51.7]} 13. Bd3 {[%clk 0:04:48.1]} 13... Qe7 {[%clk 0:04:49.3]} 14.
Rfe1 {[%clk 0:04:45.9]} 14... Ne4 {[%clk 0:04:47.3]} 15. Bxe4 {[%clk 0:04:45]}
15... dxe4 {[%clk 0:04:47.2]} 16. Nd2 {[%clk 0:04:44.5]} 16... f5 {[%clk
0:04:46.1]} 17. Nc4 {[%clk 0:04:42.2]} 17... Rac8 {[%clk 0:04:37.3]} 18. Nxd6
{[%clk 0:04:38.7]} 18... cxd6 {[%clk 0:04:32.7]} 19. Qd2 {[%clk 0:04:37.4]}
19... Nf6 {[%clk 0:04:29]} 20. Ne2 {[%clk 0:04:33.6]} 20... Nd5 {[%clk
0:04:23.3]} 21. Rc1 {[%clk 0:04:31.9]} 21... Qd7 {[%clk 0:04:14.1]} 22. Ba3
{[%clk 0:04:29.7]} 22... g6 {[%clk 0:03:57.6]} 23. Rc4 {[%clk 0:04:25.6]} 23...
b5 {[%clk 0:03:54.7]} 24. Rxc8 {[%clk 0:04:24.5]} 24... Rxc8 {[%clk 0:03:54.5]}
25. Rc1 {[%clk 0:04:23.9]} 25... Kf7 {[%clk 0:03:47.8]} 26. Rxc8 {[%clk
0:04:21.3]} 26... Bxc8 {[%clk 0:03:47.4]} 27. Nc3 {[%clk 0:04:16.7]} 27... Bb7
{[%clk 0:03:35.9]} 28. Nxd5 {[%clk 0:04:15.4]} 28... Bxd5 {[%clk 0:03:35.8]} 29.
Qb4 {[%clk 0:04:13.6]} 29... Ke6 {[%clk 0:03:32.9]} 30. Qa5 {[%clk 0:04:09.8]}
30... Qc8 {[%clk 0:03:20.7]} 31. Qb6 {[%clk 0:04:06.3]} 31... Qc6 {[%clk
0:03:13.1]} 32. Qd8 {[%clk 0:04:04.1]} 32... b4 {[%clk 0:02:58.5]} 33. Bb2
{[%clk 0:04:02.7]} 33... Qc2 {[%clk 0:02:48]} 34. h3 {[%clk 0:04:00.2]} 34...
Qxb2 {[%clk 0:02:42.9]} 35. Qg8+ {[%clk 0:03:58.6]} 35... Ke7 {[%clk 0:02:38.6]}
36. Qxd5 {[%clk 0:03:57.9]} 36... Qxa2 {[%clk 0:02:37.6]} 37. Qb7+ {[%clk
0:03:57.6]} 37... Ke6 {[%clk 0:02:35]} 38. d5+ {[%clk 0:03:43.5]} 38... Ke5
{[%clk 0:02:20.7]} 39. Qf7 {[%clk 0:03:40.3]} 1-0

[Event "Live Chess"]
[Site "Chess.com"]
[Date "2024.06.02"]
[Round "-"]
[White "MaksymYurii"]
[Black "Sir_Sigmund"]
[Result "0-1"]
[WhiteElo "946"]
[BlackElo "1871"]
[TimeControl "300"]
[EndTime "17:20:14 PDT"]
[Termination "Sir_Sigmund won on time"]

1. e4 {[%clk 0:04:57.8]} 1... e6 {[%clk 0:04:52.7]} 2. Nf3 {[%clk 0:04:56.2]}
2... d5 {[%clk 0:04:51.5]} 3. e5 {[%clk 0:04:47.7]} 3... c5 {[%clk 0:04:45.1]}
4. d4 {[%clk 0:04:44.1]} 4... Bd7 {[%clk 0:04:43.2]} 5. Bd3 {[%clk 0:04:37.7]}
5... Qb6 {[%clk 0:04:40.8]} 6. O-O {[%clk 0:04:35.9]} 6... cxd4 {[%clk
0:04:36.3]} 7. a4 {[%clk 0:04:25.1]} 7... Nc6 {[%clk 0:04:31.4]} 8. c3 {[%clk
0:04:18.3]} 8... dxc3 {[%clk 0:04:23.6]} 9. bxc3 {[%clk 0:04:16.6]} 9... Qc7
{[%clk 0:04:10.1]} 10. Bg5 {[%clk 0:04:01.5]} 10... Nge7 {[%clk 0:04:05.1]} 11.
Bb5 {[%clk 0:03:51]} 11... Nxe5 {[%clk 0:03:58.6]} 12. Nxe5 {[%clk 0:03:47]}
12... Qxe5 {[%clk 0:03:54]} 13. Bxd7+ {[%clk 0:03:43.6]} 13... Kxd7 {[%clk
0:03:52.1]} 14. a5 {[%clk 0:03:41.5]} 14... Qxg5 {[%clk 0:03:41.7]} 15. Qa4+
{[%clk 0:03:39.2]} 15... Nc6 {[%clk 0:03:40.3]} 16. Na3 {[%clk 0:03:31.9]} 16...
Bxa3 {[%clk 0:03:30.4]} 17. Qxa3 {[%clk 0:03:28.6]} 17... Rhc8 {[%clk
0:03:16.2]} 18. a6 {[%clk 0:03:26.6]} 18... b6 {[%clk 0:03:10.2]} 19. Rad1
{[%clk 0:03:16.6]} 19... Qe7 {[%clk 0:03:07.7]} 20. Qa4 {[%clk 0:03:13.3]} 20...
Kd8 {[%clk 0:02:46]} 21. c4 {[%clk 0:03:03.7]} 21... Qb4 {[%clk 0:02:44.9]} 22.
Qa2 {[%clk 0:02:54.4]} 22... d4 {[%clk 0:02:26.4]} 23. Qa1 {[%clk 0:02:14.3]}
23... Qc5 {[%clk 0:02:09.7]} 24. Qb1 {[%clk 0:01:55]} 24... Ke7 {[%clk 0:02:08]}
25. Qxh7 {[%clk 0:01:51.1]} 25... Qg5 {[%clk 0:01:31.3]} 26. Qb1 {[%clk
0:01:26.4]} 26... Rh8 {[%clk 0:01:26.3]} 27. c5 {[%clk 0:01:19.3]} 27... Qxc5
{[%clk 0:01:23.2]} 28. Rc1 {[%clk 0:01:14.6]} 28... Qd6 {[%clk 0:01:22.7]} 29.
g3 {[%clk 0:01:12.4]} 29... e5 {[%clk 0:01:15.3]} 30. Rfe1 {[%clk 0:01:07.9]}
30... Rh6 {[%clk 0:01:10.6]} 31. Qf5 {[%clk 0:00:57.5]} 31... f6 {[%clk
0:01:07.1]} 32. Qf3 {[%clk 0:00:48]} 32... Rc8 {[%clk 0:00:59.1]} 33. Qg4 {[%clk
0:00:21.6]} 33... Rg8 {[%clk 0:00:49.4]} 34. Qf3 {[%clk 0:00:15.7]} 34... Rc8
{[%clk 0:00:44.7]} 35. Qg4 {[%clk 0:00:13.8]} 35... Rg8 {[%clk 0:00:38.9]} 36.
Qf3 {[%clk 0:00:12.8]} 36... Kd7 {[%clk 0:00:32.4]} 37. Qg4+ {[%clk 0:00:09.7]}
37... Kc7 {[%clk 0:00:28.7]} 38. Rxc6+ {[%clk 0:00:06.8]} 38... Qxc6 {[%clk
0:00:25.7]} 0-1

[Event "Live Chess"]
[Site "Chess.com"]
[Date "2024.06.02"]
[Round "-"]
[White "Silverback7829"]
[Black "grillage"]
[Result "0-1"]
[WhiteElo "901"]
[BlackElo "1846"]
[TimeControl "300"]
[EndTime "17:21:06 PDT"]
[Termination "grillage won by checkmate"]

1. d4 {[%clk 0:04:57.4]} 1... e6 {[%clk 0:04:58.8]} 2. Nf3 {[%clk 0:04:55.5]}
2... Nf6 {[%clk 0:04:55.4]} 3. Nc3 {[%clk 0:04:53.7]} 3... c5 {[%clk 0:04:52.8]}
4. dxc5 {[%clk 0:04:48.7]} 4... Bxc5 {[%clk 0:04:50.9]} 5. Bg5 {[%clk 0:04:43]}
5... O-O {[%clk 0:04:47.8]} 6. Bxf6 {[%clk 0:04:39.9]} 6... Qxf6 {[%clk
0:04:45.9]} 7. e3 {[%clk 0:04:34.2]} 7... Qe7 {[%clk 0:04:39.2]} 8. Bc4 {[%clk
0:04:25.8]} 8... Nc6 {[%clk 0:04:34.3]} 9. Ne4 {[%clk 0:04:22.6]} 9... Bb6
{[%clk 0:04:24.2]} 10. O-O {[%clk 0:04:18.9]} 10... d5 {[%clk 0:04:20.9]} 11.
Ned2 {[%clk 0:03:49.9]} 11... dxc4 {[%clk 0:04:06.3]} 12. Nxc4 {[%clk
0:03:47.4]} 12... Bc7 {[%clk 0:04:04.8]} 13. a4 {[%clk 0:03:26.5]} 13... Rd8
{[%clk 0:04:01.7]} 14. Qe2 {[%clk 0:03:21.1]} 14... e5 {[%clk 0:03:57.9]} 15.
Rad1 {[%clk 0:03:14.9]} 15... Bg4 {[%clk 0:03:55.7]} 16. Rxd8+ {[%clk
0:03:08.5]} 16... Rxd8 {[%clk 0:03:53.8]} 17. h3 {[%clk 0:02:59.2]} 17... Bh5
{[%clk 0:03:52.4]} 18. Rd1 {[%clk 0:02:52.1]} 18... e4 {[%clk 0:03:49.4]} 19.
Ne1 {[%clk 0:02:36.3]} 19... Bxe2 {[%clk 0:03:46.6]} 20. Rxd8+ {[%clk
0:02:29.3]} 20... Qxd8 {[%clk 0:03:45.3]} 21. b3 {[%clk 0:02:08.9]} 21... Bxc4
{[%clk 0:03:43.2]} 22. bxc4 {[%clk 0:02:04.5]} 22... Qd1 {[%clk 0:03:39.1]} 23.
Kf1 {[%clk 0:01:59.1]} 23... Ba5 {[%clk 0:03:37.4]} 24. c5 {[%clk 0:01:40.9]}
24... Qxe1# {[%clk 0:03:35.3]} 0-1

[Event "Live Chess"]
[Site "Chess.com"]
[Date "2024.06.02"]
[Round "-"]
[White "Cruiseylee78"]
[Black "Queensandpawns"]
[Result "0-1"]
[WhiteElo "1710"]
[BlackElo "2306"]
[TimeControl "300"]
[EndTime "17:21:34 PDT"]
[Termination "Queensandpawns won by checkmate"]

1. d4 {[%clk 0:04:55.7]} 1... e5 {[%clk 0:04:59.5]} 2. e4 {[%clk 0:04:51.7]}
2... exd4 {[%clk 0:04:58.4]} 3. c3 {[%clk 0:04:50.3]} 3... dxc3 {[%clk
0:04:58.3]} 4. Nxc3 {[%clk 0:04:49.1]} 4... Nc6 {[%clk 0:04:58.2]} 5. Bc4 {[%clk
0:04:48.4]} 5... Bc5 {[%clk 0:04:57.8]} 6. Nf3 {[%clk 0:04:47.3]} 6... Nf6
{[%clk 0:04:57.2]} 7. Bg5 {[%clk 0:04:41.7]} 7... d6 {[%clk 0:04:56.2]} 8. Qc2
{[%clk 0:04:39.2]} 8... h6 {[%clk 0:04:54.5]} 9. a3 {[%clk 0:04:38.3]} 9... hxg5
{[%clk 0:04:52.6]} 10. Nxg5 {[%clk 0:04:37.2]} 10... Ne5 {[%clk 0:04:42.2]} 11.
Bb3 {[%clk 0:04:32]} 11... Nfg4 {[%clk 0:04:40.8]} 12. f4 {[%clk 0:04:27]} 12...
Rh5 {[%clk 0:04:18.9]} 13. fxe5 {[%clk 0:04:13.6]} 13... Qxg5 {[%clk 0:04:14.8]}
14. Nd5 {[%clk 0:04:04.2]} 14... Nxe5 {[%clk 0:03:28.8]} 15. Nxc7+ {[%clk
0:03:32.6]} 15... Kd8 {[%clk 0:03:27.3]} 16. Nxa8 {[%clk 0:03:29.3]} 16... Qe3+
{[%clk 0:03:26.3]} 17. Qe2 {[%clk 0:03:24.9]} 17... Qxb3 {[%clk 0:02:51]} 18.
Qxh5 {[%clk 0:03:16]} 18... Bg4 {[%clk 0:02:33.1]} 19. Qg5+ {[%clk 0:03:11.8]}
19... f6 {[%clk 0:02:31.2]} 20. Qxg7 {[%clk 0:03:04.9]} 20... Qe3+ {[%clk
0:02:29.4]} 21. Kf1 {[%clk 0:03:00.1]} 21... Qe2# {[%clk 0:02:29.3]} 0-1

[Event "Live Chess"]
[Site "Chess.com"]
[Date "2024.06.02"]
[Round "-"]
[White "MaksymYurii"]
[Black "Dhaydon19"]
[Result "0-1"]
[WhiteElo "946"]
[BlackElo "2683"]
[TimeControl "300"]
[EndTime "17:22:29 PDT"]
[Termination "Dhaydon19 won by checkmate"]

1. e4 {[%clk 0:04:56.7]} 1... e6 {[%clk 0:04:58.6]} 2. Nf3 {[%clk 0:04:56]} 2...
d5 {[%clk 0:04:56]} 3. Bb5+ {[%clk 0:04:54.9]} 3... c6 {[%clk 0:04:52.6]} 4. Ba4
{[%clk 0:04:47.6]} 4... dxe4 {[%clk 0:04:44.1]} 5. Nd4 {[%clk 0:04:33.3]} 5...
Qxd4 {[%clk 0:04:41.8]} 6. Bb3 {[%clk 0:04:30.5]} 6... Bc5 {[%clk 0:04:41]} 7.
O-O {[%clk 0:04:28.4]} 7... Bd6 {[%clk 0:04:39.3]} 8. c3 {[%clk 0:04:25.8]} 8...
Qe5 {[%clk 0:04:38]} 9. g3 {[%clk 0:04:24]} 9... h5 {[%clk 0:04:37]} 10. d4
{[%clk 0:04:15.6]} 10... Qf5 {[%clk 0:04:35.3]} 11. Bc2 {[%clk 0:04:06.6]} 11...
h4 {[%clk 0:04:33.2]} 12. Bf4 {[%clk 0:03:45.6]} 12... Bxf4 {[%clk 0:04:31.2]}
13. gxf4 {[%clk 0:03:44.2]} 13... h3 {[%clk 0:04:30.1]} 14. Nd2 {[%clk
0:03:32.4]} 14... Qg6+ {[%clk 0:04:27.8]} 15. Kh1 {[%clk 0:03:30.9]} 15... Qg2#
{[%clk 0:04:26.8]} 0-1